bitfinex/quotes_ETHUSD_20250223
["timestamp","ask_amount","ask_price","bid_price","bid_amount"]
[1740299637459,7.36963,2818.2,2817.6,4.336066]
[1740299637977,3.54862,2818.0,2817.6,0.786956]
[1740299638464,3.54855,2818.1,2817.6,0.786956]
[1740299638969,3.54849,2818.1,2817.6,4.336066]
[1740299639322,7.36963,2818.2,2817.6,4.336066]
[1740299639539,6.54843,2818.2,2817.6,4.336006]
[1740299639757,3.54861,2818.0,2817.6,0.786956]
[1740299639924,3.54861,2818.0,2817.4,4.3204]
[1740299639925,3.54919,2817.6,2817.4,0.7711]
[1740299640126,3.54937,2817.4,2817.1,1.50469329]
[1740299640634,3.54922,2817.6,2817.1,1.50469329]
[1740299640827,3.54942,2817.4,2817.1,1.50469329]
[1740299641028,3.54927,2817.5,2817.1,1.50469329]
[1740299641477,3.54922,2817.6,2817.1,1.50469329]
[1740299641656,3.54926,2817.5,2817.1,1.50469329]
[1740299641846,3.54922,2817.6,2817.1,1.50469329]
[1740299642050,3.24788437,2817.7,2817.1,0.69589329]
[1740299642363,3.54958,2817.3,2817.1,0.69589329]
[1740299643282,3.54962,2817.2,2817.1,0.69589329]
[1740299644052,3.5495,2817.3,2817.1,0.69589329]
[1740299644274,3.54962,2817.2,2817.1,0.69589329]
[1740299644677,0.7767,2817.4,2817.1,0.69589329]
[1740299644884,3.54962,2817.2,2817.1,0.69589329]
[1740299645185,4.32618,2817.4,2817.1,0.69589329]
[1740299645387,3.54959,2817.3,2817.1,0.69589329]
[1740299645850,7.87566,2817.4,2817.1,0.69589329]
[1740299646050,4.32618,2817.4,2817.1,0.69589329]
[1740299646250,7.87564,2817.4,2817.1,0.69589329]
[1740299646750,7.87563,2817.4,2817.1,0.69589329]
[1740299646947,3.54952,2817.3,2817.1,0.69589329]
[1740299647585,4.32616,2817.4,2817.1,0.69589329]
[1740299647586,3.54962,2817.2,2817.1,0.69589329]
[1740299647880,3.58643059,2817.2,2817.1,0.69589329]
[1740299650885,0.03681059,2817.2,2817.1,0.69589329]
[1740299651264,3.54952,2817.3,2817.1,0.69589329]
[1740299651464,0.03629904,2817.2,2817.1,0.69589329]
[1740299651666,3.54952,2817.3,2817.1,0.69589329]
[1740299651966,0.03629904,2817.2,2817.1,0.69589329]
[1740299652271,3.54952,2817.3,2817.1,0.69589329]
[1740299652472,0.03629904,2817.2,2817.1,0.69589329]
[1740299652678,3.54952,2817.3,2817.1,0.69589329]
[1740299652872,0.03629904,2817.2,2817.1,0.69589329]
[1740299653274,3.54952,2817.3,2817.1,0.69589329]
[1740299653485,0.03629904,2817.2,2817.1,0.69589329]
[1740299653702,3.54952,2817.3,2817.1,0.69589329]
[1740299653898,0.03629904,2817.2,2817.1,0.69589329]
[1740299654290,3.54951,2817.3,2817.1,0.69589329]
[1740299654489,0.03629904,2817.2,2817.1,0.69589329]
[1740299655110,3.54951,2817.3,2817.1,0.69589329]
[1740299655279,0.03629904,2817.2,2817.1,0.69589329]
[1740299655717,3.54951,2817.3,2817.1,0.69589329]
[1740299656115,0.03629904,2817.2,2817.1,0.69589329]
[1740299656317,3.54951,2817.3,2817.1,0.69589329]
[1740299656514,0.03629904,2817.2,2817.1,0.69589329]
[1740299656813,7.87555,2817.4,2817.1,0.69589329]
[1740299657014,4.3261,2817.4,2817.1,0.69589329]
[1740299657186,3.58580904,2817.3,2817.1,0.69589329]
[1740299658521,0.03629904,2817.3,2817.1,0.69589329]
[1740299659318,3.54962,2817.2,2817.1,0.69589329]
[1740299659518,3.55063,2816.4,2816.3,1.48669329]
[1740299659820,3.55051,2816.5,2816.3,0.69589329]
[1740299660021,0.03609437,2816.4,2816.3,0.69589329]
[1740299660225,3.58672437,2816.4,2816.3,0.69589329]
[1740299660514,0.03609437,2816.4,2816.3,0.69589329]
[1740299660717,0.8215,2816.6,2816.3,0.69589329]
[1740299661014,0.03609437,2816.4,2816.3,0.69589329]
[1740299661215,4.37155,2816.9,2816.3,0.69589329]
[1740299661416,0.8215,2816.9,2816.3,4.75032762]
[1740299661636,3.55013,2816.8,2816.3,1.19964762]
[1740299661849,0.03609437,2816.8,2816.3,0.69589329]
[1740299662143,0.03609437,2816.8,2816.3,4.24661329]
[1740299662346,0.03609437,2816.8,2816.3,4.24655329]
[1740299662694,0.03609437,2816.8,2816.5,3.55046]
[1740299662925,3.24788437,2817.0,2816.5,3.55046]
[1740299663140,0.03609437,2816.7,2816.5,3.55046]
[1740299663340,1.7946079,2817.1,2816.5,3.55046]
[1740299663503,0.03609437,2816.6,2816.5,3.55046]
[1740299663841,5.18060088,2817.7,2816.3,4.24657329]
[1740299663842,7.06115437,2817.5,2816.8,3.55009]
[1740299664125,0.03609437,2816.6,2816.4,4.30315]
[1740299664421,4.31927,2817.1,2816.4,4.30315]
[1740299664625,0.03561673,2816.5,2816.4,0.7526]
[1740299664791,3.55,2816.9,2816.4,0.7526]
[1740299664991,0.03561673,2816.5,2816.3,0.69589329]
[1740299665206,3.55022,2816.8,2816.3,0.69589329]
[1740299665529,0.43195,2816.9,2816.3,4.24664329]
[1740299665695,0.03561673,2816.7,2816.3,4.24664329]
[1740299665895,3.54998,2817.0,2816.3,4.24664329]
[1740299666106,0.03561673,2816.6,2816.3,4.24664329]
[1740299666305,3.7695,2817.1,2816.3,0.69589329]
[1740299666538,0.03561673,2816.5,2816.3,0.69589329]
[1740299666706,3.55028,2816.7,2816.3,0.69589329]
[1740299666908,0.03561673,2816.4,2816.3,0.69589329]
[1740299667102,3.55016,2816.8,2816.3,0.69589329]
[1740299667307,0.03561673,2816.4,2816.3,0.69589329]
[1740299667505,3.54999,2817.0,2816.3,0.69589329]
[1740299667704,0.03561673,2816.4,2816.3,0.69589329]
[1740299667995,3.54999,2817.0,2816.3,4.24664329]
[1740299668208,0.03561673,2816.4,2816.3,0.69589329]
[1740299668404,0.03561673,2816.4,2816.3,4.74646562]
[1740299668608,0.03561673,2816.4,2816.3,8.29713562]
[1740299668803,8.03154666,2817.1,2816.3,4.74646562]
[1740299669003,0.264,2817.5,2816.3,4.74646562]
[1740299669004,0.03561673,2817.0,2816.7,3.55016]
[1740299669304,5.01934929,2817.4,2816.7,3.55016]
[1740299669523,0.03561673,2816.9,2816.7,3.55016]
[1740299669720,0.7695,2817.4,2816.7,3.55016]
[1740299669931,0.7695,2817.4,2816.9,3.54997]
[1740299670331,0.7695,2817.4,2816.7,4.24603329]
[1740299670535,0.7695,2817.4,2816.8,3.55009]
[1740299670699,2.25389912,2817.4,2816.8,3.55009]
[1740299670900,3.0,2817.3,2816.7,7.79620329]
[1740299671298,3.0,2817.3,2816.7,4.24603329]
[1740299671526,3.0,2817.3,2816.9,3.54997]
[1740299673762,3.0,2817.3,2816.8,3.55008]
[1740299673972,7.31898,2817.4,2816.7,4.24614329]
[1740299674271,3.5496,2817.3,2816.7,0.69589329]
[1740299676851,3.24788437,2817.3,2816.7,0.69589329]
[1740299677014,3.54962,2817.2,2816.7,0.69589329]
[1740299677219,7.0999,2817.0,2816.7,0.69589329]
[1740299677635,0.03542915,2816.9,2816.7,0.69589329]
[1740299678723,4.30182,2816.8,2816.7,0.69589329]
[1740299679025,4.30183,2816.8,2816.3,0.69589329]
[1740299679225,7.88748915,2816.8,2816.3,0.69589329]
[1740299679552,4.33725915,2816.8,2816.3,0.69589329]
[1740299682995,4.33728915,2816.8,2816.3,0.69589329]
[1740299684292,3.55025,2816.7,2816.3,0.69589329]
[1740299684588,3.58573033,2816.7,2816.3,0.69589329]
[1740299687309,3.55044,2816.6,2816.3,0.69589329]
[1740299687810,0.03548033,2816.5,2816.3,0.69589329]
[1740299688311,3.55063,2816.4,2816.3,0.69589329]
[1740299688674,4.38253,2816.4,2816.3,0.69589329]
[1740299688881,4.41798474,2816.4,2816.3,0.69589329]
[1740299689094,4.41798474,2816.4,2815.8,0.7724]
[1740299689393,3.55108,2816.1,2815.8,0.7724]
[1740299689912,0.03515259,2816.0,2815.8,0.7724]
[1740299690506,3.55127,2815.9,2815.6,1.46829329]
[1740299691093,0.03515259,2815.8,2815.6,1.46829329]
[1740299691300,3.55151,2815.7,2815.6,0.69589329]
[1740299691482,0.03497342,2815.7,2815.6,0.69589329]
[1740299691807,3.55151,2815.7,2815.6,0.69589329]
[1740299692214,3.58630428,2815.7,2815.6,0.69589329]
[1740299692687,4.38325371,2815.7,2815.6,0.69589329]
[1740299694990,4.38325371,2815.7,2815.2,0.69589329]
[1740299695187,3.55202,2815.3,2815.0,0.7724]
[1740299695418,3.5518,2815.5,2815.0,0.7724]
[1740299695622,0.03479071,2815.2,2815.0,0.7724]
[1740299695899,0.03479071,2815.1,2815.0,0.7724]
[1740299696317,3.55205,2815.3,2815.0,0.7724]
[1740299696607,0.03479071,2815.1,2815.0,0.7724]
[1740299696826,3.55217,2815.2,2815.0,0.7724]
[1740299696995,0.03479071,2815.1,2814.8,1.46829329]
[1740299697194,0.03479071,2815.1,2814.8,2.50512262]
[1740299697968,0.03479071,2815.1,2814.8,6.05774262]
[1740299698239,4.3838,2815.4,2814.8,6.05774262]
[1740299698408,0.03407378,2815.0,2814.8,2.50512262]
[1740299698605,4.3838,2815.4,2814.8,2.50512262]
[1740299699102,0.03407378,2815.3,2814.8,6.05773262]
[1740299699307,0.03407378,2815.3,2814.9,4.15828326]
[1740299699660,0.03407378,2815.3,2814.9,0.60577326]
[1740299700160,3.58614378,2815.3,2814.9,0.60577326]
[1740299700439,3.55229,2815.1,2814.8,2.50512262]
[1740299700645,3.55237,2815.1,2814.8,0.69589329]
[1740299701114,3.55205,2815.3,2814.8,0.69589329]
[1740299701318,3.0,2815.2,2814.6,0.7972]
[1740299701661,3.0,2815.2,2814.1,0.005]
[1740299701662,3.553,2814.6,2814.1,0.005]
[1740299702004,7.32843,2814.8,2814.1,3.55852]
[1740299702437,8.03652052,2814.8,2814.1,3.55852]
[1740299703041,0.7757,2815.0,2814.2,0.7972]
[1740299703251,1.47596395,2815.0,2814.3,3.5532]
[1740299703544,3.55265,2814.8,2814.3,0.43554]
[1740299703738,3.55265,2814.8,2814.2,0.7972]
[1740299704104,0.8189,2814.7,2814.1,0.005]
[1740299704505,3.55311,2814.5,2814.1,0.005]
[1740299704709,3.55326,2814.4,2814.1,0.005]
[1740299705326,3.5534,2814.2,2814.1,0.005]
[1740299706590,3.55328,2814.3,2814.1,0.005]
[1740299707282,0.8189,2815.2,2814.1,0.005]
[1740299707498,3.55234,2815.1,2814.4,0.7699]
[1740299707645,0.437124,2815.0,2814.4,4.32304]
[1740299707850,3.55234,2815.1,2814.4,4.32304]
[1740299708045,4.52028104,2815.2,2814.5,3.553]
[1740299708281,4.52028104,2815.2,2814.6,3.55288]
[1740299708589,4.52028104,2815.2,2814.5,3.553]
[1740299708803,3.55227,2815.1,2814.4,0.7699]
[1740299709086,3.55227,2815.1,2814.5,3.553]
[1740299709295,5.06592654,2815.1,2814.5,3.553]
[1740299709860,5.06592654,2815.1,2814.4,0.7699]
[1740299710186,5.06592654,2815.1,2814.4,4.32305]
[1740299710706,3.8189,2815.2,2814.4,0.7699]
[1740299710993,0.8189,2815.4,2815.0,3.55232]
[1740299711170,0.8189,2815.4,2814.9,4.3224]
[1740299711369,3.71356382,2815.5,2815.0,3.55239]
[1740299712192,3.71356382,2815.5,2814.9,4.32241]
[1740299712392,4.63449,2815.7,2815.2,3.5521]
[1740299712393,1.0829,2815.7,2815.2,3.5521]
[1740299712593,1.0829,2815.7,2815.2,3.55207]
[1740299712769,4.0829,2815.7,2815.1,3.55226]
[1740299712976,1.0829,2815.7,2815.1,3.55226]
[1740299713293,0.8189,2816.0,2815.1,1.63168272]
[1740299713493,1.51666378,2816.0,2815.2,0.7699]
[1740299713697,3.55149,2815.8,2815.1,0.69589329]
[1740299714003,3.24788437,2815.9,2815.1,0.69589329]
[1740299714179,3.55139,2815.8,2815.2,3.55212]
[1740299714372,3.55139,2815.8,2815.1,0.69589329]
[1740299714578,4.73810082,2815.8,2815.1,4.24814329]
[1740299715098,1.18671082,2815.8,2815.1,0.69589329]
[1740299715304,4.73811082,2815.8,2815.1,0.69589329]
[1740299715899,4.73811082,2815.8,2815.1,4.24814329]
[1740299716689,4.73811082,2815.8,2815.1,0.69589329]
[1740299716895,4.73811082,2815.8,2815.1,4.24812329]
[1740299717767,4.73811082,2815.8,2815.1,4.24808329]
[1740299718905,8.28960082,2815.8,2815.1,4.24808329]
[1740299719105,1.15374852,2815.7,2815.1,4.24808329]
[1740299719293,3.5514,2815.8,2815.1,4.24808329]
[1740299719693,6.79917437,2815.9,2815.1,4.24807329]
[1740299719901,6.79917437,2815.9,2815.2,3.55206]
[1740299720785,3.55129,2815.9,2815.2,3.55206]
[1740299721168,3.55129,2815.9,2815.2,3.55212]
[1740299721376,4.41320138,2815.9,2815.2,3.55212]
[1740299721575,0.86191138,2815.9,2815.1,0.69589329]
[1740299721907,0.7694,2816.4,2815.8,4.35418]
[1740299722093,3.7694,2816.4,2815.8,4.35418]
[1740299722303,0.7694,2816.4,2815.9,3.55123]
[1740299722486,0.35859203,2816.5,2815.9,3.55123]
[1740299722681,3.35859203,2816.5,2816.0,3.55112]
[1740299723083,0.35859203,2816.5,2816.0,3.55112]
[1740299724477,1.50251365,2816.8,2815.9,0.69589329]
[1740299724698,3.24788437,2817.0,2816.3,3.5507]
[1740299724898,0.71003097,2817.0,2816.5,3.55042]
[1740299725092,0.8075,2817.1,2816.7,3.55015]
[1740299725391,0.8075,2817.1,2816.6,0.8078]
[1740299725592,3.8075,2817.1,2816.6,0.8078]
[1740299725790,3.8075,2817.1,2816.6,4.35813]
[1740299725991,0.8075,2817.1,2816.6,4.35813]
[1740299726191,0.8075,2817.1,2816.6,0.8078]
[1740299727015,0.8075,2817.1,2816.6,4.35817]
[1740299727691,0.8075,2817.1,2816.6,0.8078]
[1740299728580,0.8075,2817.1,2816.6,4.35809]
[1740299728819,0.8075,2817.1,2816.6,0.8078]
[1740299728977,1.07490848,2817.7,2816.6,1.24362]
[1740299729184,0.8075,2818.2,2817.4,0.8078]
[1740299729508,3.54938,2817.4,2816.9,0.69589329]
[1740299729678,0.03540493,2817.3,2816.9,0.69589329]
[1740299730084,7.60464437,2817.5,2816.9,0.69589329]
[1740299730420,4.77029453,2817.4,2816.9,0.69589329]
[1740299730815,3.5495,2817.3,2816.9,0.69589329]
[1740299731387,0.03540493,2817.2,2816.9,0.69589329]
[1740299731819,4.7348896,2817.4,2816.9,0.69589329]
[1740299732024,0.03540493,2817.1,2816.9,0.69589329]
[1740299732187,4.7348896,2817.4,2816.9,0.69589329]
[1740299732841,0.97592565,2817.3,2816.9,0.69589329]
[1740299733193,4.52545565,2817.3,2816.9,0.69589329]
[1740299733405,6.79751437,2817.2,2816.6,0.8078]
[1740299733718,3.54977,2817.1,2816.5,3.55042]
[1740299734118,0.09689825,2817.0,2816.5,3.55042]
[1740299734485,3.55013,2816.8,2816.4,0.8078]
[1740299734690,0.8075,2816.9,2816.3,4.24657329]
[1740299734889,0.09673625,2816.8,2816.3,4.24657329]
[1740299736133,0.09673625,2816.8,2816.4,3.55054]
[1740299736286,0.09673625,2816.8,2816.3,4.24657329]
[1740299736287,0.09673625,2816.8,2816.3,0.69589329]
[1740299736490,7.60507437,2817.2,2816.5,3.55044]
[1740299736792,0.09656567,2817.1,2816.4,4.35843]
[1740299737124,0.8075,2816.8,2816.3,0.69589329]
[1740299737327,4.35767,2816.8,2816.3,0.69589329]
[1740299737509,0.09656567,2816.7,2816.3,0.69589329]
[1740299737703,4.35767,2816.8,2816.3,0.69589329]
[1740299738034,0.09656567,2816.7,2816.3,0.69589329]
[1740299738541,0.09656567,2816.6,2816.3,0.69589329]
[1740299738892,3.55025,2816.7,2816.3,0.69589329]
[1740299739267,3.5508,2816.3,2815.7,5.00978329]
[1740299739571,0.09624157,2816.2,2815.7,1.45829329]
[1740299739737,0.09624157,2816.2,2815.9,3.55117]
[1740299739941,3.5505,2816.5,2815.9,3.55117]
[1740299740240,0.09624157,2816.1,2815.9,3.55117]
[1740299740454,3.5505,2816.5,2815.9,3.55117]
[1740299740641,0.09624157,2816.0,2815.9,3.55117]
[1740299740843,3.5505,2816.5,2815.9,3.55117]
[1740299741169,3.5507,2816.4,2815.7,5.00977329]
[1740299741351,3.55098,2816.2,2815.7,1.95927062]
[1740299741723,0.8032,2816.3,2815.7,5.51068062]
[1740299741923,0.09624157,2816.2,2815.8,3.55138]
[1740299742217,0.09624157,2816.2,2815.7,0.69589329]
[1740299742421,0.09624157,2816.2,2815.4,9.7118]
[1740299742422,3.5515,2815.8,2815.1,4.36404]
[1740299742623,3.5515,2815.8,2815.3,3.55198]
[1740299742875,0.09583206,2815.7,2815.3,3.55198]
[1740299743370,0.09582352,2815.6,2815.3,3.55198]
[1740299743660,0.09582352,2815.6,2815.1,1.50769329]
[1740299743815,0.8032,2816.1,2815.6,3.55159]
[1740299745919,3.95501505,2816.3,2815.6,3.55159]
[1740299745920,3.0,2816.3,2816.0,3.55103]
[1740299746118,3.0,2816.3,2815.8,3.55134]
[1740299746756,3.5508,2816.3,2815.6,1.50769329]
[1740299747054,6.5508,2816.3,2815.7,3.55151]
[1740299747351,6.5508,2816.3,2815.6,1.50769329]
[1740299747352,3.0,2816.3,2815.6,1.50769329]
[1740299747662,6.55076,2816.3,2815.6,5.05932329]
[1740299747960,6.55076,2816.3,2815.7,3.55142]
[1740299749157,3.0,2816.3,2815.9,3.55118]
[1740299749454,3.0,2816.3,2815.8,3.55126]
[1740299749659,6.55076,2816.3,2815.8,3.55126]
[1740299749821,3.0,2816.3,2815.8,3.55126]
[1740299750020,3.0,2816.3,2815.9,3.55122]
[1740299750251,3.0,2816.3,2815.8,3.55137]
[1740299750859,3.55092,2816.2,2815.7,3.55149]
[1740299752327,3.55121,2816.0,2815.6,0.69589329]
[1740299752856,0.0949277,2815.9,2815.6,0.69589329]
[1740299754028,3.55139,2815.8,2815.6,0.69589329]
[1740299754766,0.09468022,2815.7,2815.6,0.69589329]
[1740299754974,0.09468022,2815.7,2815.5,3.5517]
[1740299755271,0.7914,2816.1,2815.6,3.90681]
[1740299756654,0.7914,2816.1,2815.7,3.55149]
[1740299757054,0.7914,2816.1,2815.5,3.5517]
[1740299757265,4.34242,2816.1,2815.5,7.10336]
[1740299757465,0.7914,2816.1,2815.5,3.55166]
[1740299757639,0.7914,2816.1,2815.5,4.05470533]
[1740299757840,0.7914,2816.1,2815.6,3.55162]
[1740299758737,0.7914,2816.1,2815.5,0.50304533]
[1740299758937,3.55133,2815.9,2815.3,5.03071329]
[1740299759275,3.55133,2815.9,2815.3,8.58266329]
[1740299759475,3.55133,2815.9,2815.4,3.55188]
[1740299760041,3.55133,2815.9,2815.3,5.03071329]
[1740299760042,4.34248,2816.1,2815.3,1.47879329]
[1740299760271,3.55121,2816.0,2815.5,3.55166]
[1740299760488,3.55133,2815.9,2815.3,5.03073329]
[1740299760692,3.55133,2815.9,2815.3,5.88901162]
[1740299760976,4.34244,2816.1,2815.6,3.55162]
[1740299761271,4.34244,2816.1,2815.4,3.55181]
[1740299761460,3.55114,2816.0,2815.4,3.5518]
[1740299761669,4.34244,2816.1,2815.5,3.55164]
[1740299761872,3.55122,2816.0,2815.5,3.55164]
[1740299762479,4.34244,2816.1,2815.5,3.55164]
[1740299762782,3.55118,2816.0,2815.5,3.55164]
[1740299766580,3.55118,2816.0,2815.4,3.55182]
[1740299766984,7.10241,2816.0,2815.4,3.55182]
[1740299767173,7.10239,2816.0,2815.4,3.55182]
[1740299767373,3.55118,2816.0,2815.4,3.55182]
[1740299767687,0.7914,2816.1,2815.4,3.55182]
[1740299767888,3.64596607,2815.9,2815.3,5.88902162]
[1740299768061,3.55132,2815.9,2815.3,5.88902162]
[1740299768266,0.09464607,2815.8,2815.3,5.88902162]
[1740299768476,0.09464607,2815.8,2815.4,3.55182]
[1740299768995,0.09464607,2815.8,2815.4,3.55181]
[1740299772472,0.09464607,2815.8,2815.3,2.33707162]
[1740299772787,3.64603607,2815.8,2815.3,2.33707162]
[1740299773171,3.55158,2815.7,2815.3,1.47879329]
[1740299773377,3.55165,2815.6,2815.3,0.69589329]
[1740299773764,0.09464607,2815.5,2815.3,0.69589329]
[1740299774367,4.31877,2815.7,2815.3,0.69589329]
[1740299774680,0.09465461,2815.4,2815.3,0.69589329]
[1740299774867,3.84188926,2815.4,2815.3,0.69589329]
[1740299775198,3.93654387,2815.4,2815.3,0.69589329]
[1740299775966,0.38465387,2815.4,2815.3,0.69589329]
[1740299777303,3.55252,2814.9,2814.8,0.69589329]
[1740299777518,3.55216,2815.2,2814.6,3.55278]
[1740299777813,0.7672,2815.3,2814.8,7.10519]
[1740299778112,0.09411682,2815.1,2814.9,3.55252]
[1740299778314,0.7672,2815.3,2814.9,3.55252]
[1740299778914,0.09374118,2815.2,2814.9,3.55252]
[1740299779114,0.7672,2815.3,2814.7,3.5527]
[1740299779413,0.38374044,2815.2,2814.5,0.8073]
[1740299779598,0.38374044,2815.2,2814.9,3.55248]
[1740299780600,3.55235,2815.1,2814.7,0.69589329]
[1740299780787,3.84234926,2815.1,2814.7,0.69589329]
[1740299780988,0.09370704,2815.0,2814.7,0.69589329]
[1740299781813,0.28999926,2814.9,2814.7,0.69589329]
[1740299782604,0.09370704,2814.8,2814.7,0.69589329]
[1740299783199,0.3837063,2814.8,2814.7,0.69589329]
[1740299784099,0.3837063,2814.8,2814.4,3.55315]
[1740299784403,0.3837063,2814.8,2814.4,4.41610733]
[1740299784988,1.1913063,2814.8,2814.3,1.52309329]
[1740299785397,1.1913063,2814.8,2814.4,3.55312]
[1740299785790,0.28999926,2814.7,2814.4,3.55312]
[1740299786305,0.09319467,2814.6,2814.4,3.55312]
[1740299786511,0.09319467,2814.6,2814.4,4.41607533]
[1740299786895,0.28999926,2814.5,2814.4,4.41607533]
[1740299787477,0.38319393,2814.5,2814.4,4.41607533]
[1740299789295,0.38319393,2814.5,2814.4,3.55312]
[1740299792699,0.28999926,2814.5,2814.4,3.55312]
[1740299792902,0.28999926,2814.5,2814.4,6.80100437]
[1740299793103,0.28999926,2814.5,2814.4,7.59020437]
[1740299794909,0.8076,2815.2,2814.8,3.55259]
[1740299795099,3.0,2815.3,2814.8,3.55256]
[1740299795299,0.09287888,2815.1,2814.8,7.10513]
[1740299795499,0.09287888,2815.0,2814.8,3.55256]
[1740299795700,0.09287888,2815.0,2814.8,7.10513]
[1740299795901,3.0,2815.3,2814.8,7.10513]
[1740299796106,0.09287888,2814.9,2814.8,7.10513]
[1740299796310,3.0,2815.3,2814.8,3.55256]
[1740299796618,0.8076,2815.4,2814.9,0.7892]
[1740299796790,0.08976362,2815.2,2815.1,3.55217]
[1740299796997,0.8076,2815.4,2815.1,3.55217]
[1740299797196,0.08976362,2815.2,2815.1,3.55217]
[1740299797398,0.8076,2815.4,2815.1,3.55217]
[1740299797715,0.08976362,2815.2,2815.0,3.55239]
[1740299797913,0.8076,2815.4,2815.0,3.55239]
[1740299798485,0.08976362,2815.3,2815.0,3.55239]
[1740299799616,0.08976362,2815.3,2815.2,3.55214]
[1740299799808,0.08976362,2815.3,2815.2,4.34884]
[1740299800006,0.7954,2815.9,2815.2,0.7967]
[1740299800318,0.7954,2815.9,2815.4,3.55187]
[1740299800615,0.08668759,2815.8,2815.4,3.55187]
[1740299800820,0.08668759,2815.8,2815.6,3.5516]
[1740299801815,0.08668759,2815.8,2815.6,3.55156]
[1740299803082,0.08668759,2815.8,2815.3,0.69589329]
[1740299803405,0.08668759,2815.8,2815.6,3.55152]
[1740299805087,3.7988,2816.1,2815.6,3.55152]
[1740299805289,0.08696159,2815.7,2815.6,3.55152]
[1740299805510,4.60598339,2816.1,2815.6,3.55152]
[1740299805712,0.08735987,2815.7,2815.6,3.55152]
[1740299805914,0.7988,2816.1,2815.9,3.55123]
[1740299806110,0.7988,2816.1,2815.7,4.36833]
[1740299806394,0.7988,2816.1,2815.9,3.55122]
[1740299806589,0.7988,2816.1,2815.7,4.36833]
[1740299806818,0.7988,2816.1,2815.8,3.55136]
[1740299807021,0.7988,2816.1,2815.7,4.36833]
[1740299807328,0.7988,2816.1,2815.9,3.55121]
[1740299807525,0.7988,2816.1,2815.7,4.36834]
[1740299807831,0.7988,2816.1,2815.8,3.55136]
[1740299809403,10.90016,2816.4,2815.8,3.55136]
[1740299809638,1.090016,2816.3,2815.8,3.55136]
[1740299811212,1.090016,2816.3,2815.7,0.8169]
[1740299811397,4.640846,2816.3,2815.7,4.36841]
[1740299812633,3.5509,2816.2,2815.7,4.36841]
[1740299812832,0.08751394,2816.2,2815.7,4.36834]
[1740299813034,0.08751394,2816.2,2815.8,3.55138]
[1740299813208,0.08751394,2816.2,2815.7,4.36839]
[1740299814948,0.7988,2816.0,2815.4,0.69589329]
[1740299815156,3.55143,2815.8,2815.4,0.69589329]
[1740299815325,0.08753962,2815.7,2815.4,0.69589329]
[1740299815533,3.55135,2815.9,2815.4,0.69589329]
[1740299815853,0.08753962,2815.8,2815.4,0.69589329]
[1740299816239,3.55176,2815.5,2815.4,0.69589329]
[1740299816447,3.55176,2815.5,2814.9,4.24831329]
[1740299816750,0.08754818,2815.5,2814.9,0.69589329]
[1740299816923,4.35088,2815.3,2814.9,0.69589329]
[1740299817118,0.08721431,2815.2,2814.9,0.69589329]
[1740299817325,0.7988,2815.3,2814.5,4.36983]
[1740299817529,0.08721431,2815.2,2814.7,3.55269]
[1740299817732,0.08721431,2815.2,2814.7,3.55267]
[1740299819128,0.75163323,2815.1,2814.6,0.50657233]
[1740299819353,4.3517,2814.9,2814.4,0.69589329]
[1740299819656,0.08675196,2814.8,2814.4,4.24896329]
[1740299819854,0.08675196,2814.8,2814.4,5.99894862]
[1740299820524,0.75163323,2814.7,2814.4,5.99894862]
[1740299820724,0.08655501,2814.6,2814.4,5.99894862]
[1740299820925,0.08655501,2814.6,2814.4,4.24896329]
[1740299821159,0.08655501,2814.6,2814.5,3.55302]
[1740299821658,4.33867,2815.6,2815.1,3.55218]
[1740299821824,3.55192,2815.4,2814.9,3.55251]
[1740299822230,0.08632375,2815.3,2814.9,3.55251]
[1740299822433,0.08632375,2815.3,2814.9,0.50072033]
[1740299822626,0.08632375,2815.3,2814.9,3.55242]
[1740299822836,0.75203574,2815.3,2814.8,7.80099329]
[1740299823030,0.787,2815.1,2814.8,0.69589329]
[1740299823431,0.787,2815.1,2814.8,4.24850329]
[1740299823732,0.08646937,2815.0,2814.8,4.24850329]
[1740299824139,0.37571388,2815.0,2814.8,4.24847329]
[1740299825037,0.37571388,2815.0,2814.8,0.69589329]
[1740299825654,0.28924451,2814.9,2814.8,0.69589329]
[1740299826366,0.37571388,2814.9,2814.8,0.69589329]
[1740299828649,0.37571388,2814.9,2814.8,4.67341462]
[1740299828855,0.37571388,2814.9,2814.8,5.01994329]
[1740299829166,0.28924451,2814.9,2814.8,5.01994329]
[1740299829660,0.8228,2816.0,2814.9,0.7714]
[1740299829862,0.8228,2816.0,2815.6,3.55161]
[1740299830162,0.08646937,2815.9,2815.7,3.55142]
[1740299830462,0.08658926,2815.8,2815.6,3.55161]
[1740299830827,0.8228,2816.4,2815.8,3.55131]
[1740299831033,3.55077,2816.3,2815.7,3.55151]
[1740299831983,3.55107,2816.1,2815.6,0.432301]
[1740299832169,3.55107,2816.1,2815.5,4.32311]
[1740299833137,3.55107,2816.1,2815.5,4.32309]
[1740299833569,3.55107,2816.1,2815.5,7.87476]
[1740299833735,3.55107,2816.1,2815.5,4.32307]
[1740299833935,3.55107,2816.1,2815.5,7.87476]
[1740299834136,3.55089,2816.2,2815.6,0.787476]
[1740299834336,3.55089,2816.2,2815.6,4.339106]
[1740299834657,3.55079,2816.3,2815.7,3.55142]
[1740299834854,4.3732,2816.6,2816.0,3.55101]
[1740299835052,4.3732,2816.6,2815.8,3.55138]
[1740299835053,3.55055,2816.5,2815.8,4.24717329]
[1740299835259,0.8228,2816.6,2815.8,2.52165422]
[1740299835447,0.8228,2816.0,2815.8,0.69589329]
[1740299836169,0.8228,2816.4,2815.8,0.69589329]
[1740299836371,0.8228,2816.4,2816.0,4.32252]
[1740299836572,1.08784104,2816.7,2816.2,3.55084]
[1740299836778,4.08784104,2816.7,2816.2,3.55084]
[1740299837578,7.63812104,2816.7,2816.2,3.55084]
[1740299838368,3.55046,2816.6,2816.0,4.32252]
[1740299838552,3.55046,2816.6,2816.0,5.17942833]
[1740299838874,0.8228,2816.7,2816.2,3.55079]
[1740299839255,0.8228,2816.7,2816.3,3.5507]
[1740299839966,0.8228,2816.7,2816.2,3.55079]
[1740299840601,0.8228,2816.7,2816.1,0.69589329]
[1740299840773,3.55045,2816.6,2816.1,4.24687329]
[1740299840940,3.55045,2816.6,2816.1,1.63852445]